bitfinex/quotes_ETHUSD_20251118
["timestamp","ask_amount","ask_price","bid_price","bid_amount"]
[1763499738620,0.002,3128.2,3128.1,0.5894]
[1763499739088,0.002,3128.2,3128.1,1.081]
[1763499739904,0.002,3128.2,3127.6,0.4916]
[1763499741318,0.002,3128.2,3128.1,0.4548]
[1763499741817,0.002,3128.2,3128.1,0.9222]
[1763499742806,0.002,3128.2,3128.1,1.327704]
[1763499743493,0.002,3128.2,3128.1,0.4548]
[1763499743725,0.002,3128.2,3127.8,0.405504]
[1763499743897,0.002,3128.2,3127.7,0.4674]
[1763499744423,0.002,3128.2,3128.1,0.4548]
[1763499745549,0.002,3128.2,3128.1,0.9222]
[1763499745690,0.002,3128.2,3128.1,1.327704]
[1763499746533,0.002,3128.5,3128.2,0.405504]
[1763499746731,0.002,3128.6,3128.5,0.405504]
[1763499747039,0.002,3128.6,3128.5,0.860304]
[1763499747216,0.002,3128.6,3128.5,1.327704]
[1763499750850,0.002,3128.9,3128.7,0.405504]
[1763499751140,0.002,3128.9,3128.8,0.860304]
[1763499753147,0.102,3128.9,3128.8,0.860304]
[1763499753452,0.102,3128.9,3128.8,1.327704]
[1763499755063,0.102,3128.9,3128.1,0.22346966]
[1763499755064,1.0788,3128.9,3128.1,0.22346966]
[1763499755356,0.102,3128.9,3128.1,0.4674]
[1763499756658,0.7612,3128.9,3127.9,0.4913]
[1763499757721,0.2959,3128.9,3127.8,0.001]
[1763499757950,0.4653,3128.8,3127.8,0.001]
[1763499758474,0.4653,3128.8,3127.8,0.4923]
[1763499759743,0.4653,3128.8,3127.9,0.405504]
[1763499759962,0.4653,3128.8,3127.9,0.896804]
[1763499760162,0.2959,3128.9,3127.9,0.896804]
[1763499760355,0.2959,3128.9,3128.1,0.405504]
[1763499761260,0.7612,3128.9,3128.1,0.405504]
[1763499761589,0.7612,3128.9,3127.8,0.001]
[1763499761741,0.4653,3128.8,3127.8,0.001]
[1763499763950,0.4653,3128.8,3127.9,0.001]
[1763499764667,0.2959,3128.9,3128.0,0.405504]
[1763499764877,0.102,3128.9,3128.0,0.405504]
[1763499765045,0.102,3128.9,3128.2,0.405504]
[1763499765584,0.102,3128.9,3128.3,0.405504]
[1763499766078,0.2959,3128.9,3128.3,0.405504]
[1763499766873,0.102,3128.9,3127.9,0.001]
[1763499767070,0.102,3128.9,3128.3,0.405504]
[1763499768296,0.102,3128.9,3127.9,0.001]
[1763499768590,0.102,3128.9,3128.4,0.405504]
[1763499768947,0.102,3128.9,3128.5,0.4913]
[1763499769148,0.102,3128.9,3127.9,0.001]
[1763499769349,0.102,3128.9,3128.1,0.405504]
[1763499769555,0.102,3128.9,3128.8,0.4593]
[1763499769951,0.102,3128.9,3128.4,0.405504]
[1763499770385,0.102,3128.9,3128.5,0.405504]
[1763499770862,0.102,3128.9,3128.6,0.405504]
[1763499771598,0.102,3128.9,3128.8,0.4593]
[1763499771885,0.002,3129.3,3128.9,0.405504]
[1763499772086,0.002,3129.3,3129.2,0.968504]
[1763499772588,0.002,3129.3,3129.2,0.864804]
[1763499772957,0.002,3129.3,3129.0,0.6674608]
[1763499772958,0.4595,3129.3,3129.0,0.1761608]
[1763499773202,0.0292,3129.1,3127.9,0.4923]
[1763499773411,0.0292,3129.1,3128.0,0.72172069]
[1763499773600,0.4945,3129.1,3128.0,0.72172069]
[1763499773899,0.4945,3129.1,3128.1,0.896804]
[1763499774060,0.4945,3129.1,3128.3,0.405504]
[1763499774262,0.002,3129.3,3128.3,0.405504]
[1763499774461,0.002,3129.3,3128.5,0.405504]
[1763499774701,0.002,3129.3,3128.5,0.896804]
[1763499774904,0.002,3129.3,3129.2,0.966204]
[1763499776009,0.002,3129.3,3129.2,1.457504]
[1763499776211,0.002,3129.3,3128.5,4.10337817]
[1763499776212,0.002,3129.3,3128.5,0.90699264]
[1763499776401,0.4653,3129.2,3128.6,0.76308996]
[1763499776605,0.4653,3129.2,3127.9,0.4923]
[1763499776807,0.4653,3129.2,3128.0,0.405504]
[1763499777183,0.4653,3129.2,3128.1,0.4913]
[1763499778213,0.4653,3129.2,3127.9,0.63233557]
[1763499778582,0.4653,3129.2,3128.0,0.405504]
[1763499779193,0.4653,3129.2,3127.9,0.001]
[1763499780719,0.6514,3128.0,3127.9,0.001]
[1763499781083,1.1167,3128.0,3127.9,0.001]
[1763499781336,0.1939,3128.3,3127.9,0.001]
[1763499781816,0.6592,3128.3,3127.9,0.001]
[1763499782116,0.1939,3128.6,3127.9,0.001]
[1763499782522,0.4653,3128.5,3127.9,0.001]
[1763499782725,0.4575,3128.0,3127.9,0.001]
[1763499784009,0.4653,3128.3,3127.9,0.001]
[1763499785514,0.1939,3128.9,3128.2,0.5603]
[1763499785916,0.4575,3128.3,3127.9,0.001]
[1763499786224,0.373,3128.1,3127.9,0.001]
[1763499786418,0.373,3128.1,3127.2,0.90699264]
[1763499786713,0.373,3128.1,3127.1,0.64821845]
[1763499786902,0.373,3128.1,3126.9,4.95906595]
[1763499787231,0.373,3128.1,3127.0,1.40289924]
[1763499788016,0.4806,3128.4,3127.1,0.3109]
[1763499788315,0.4806,3128.7,3127.3,0.405504]
[1763499788612,0.4806,3128.7,3127.2,0.405504]
[1763499789005,0.4806,3128.7,3127.2,0.716404]
[1763499789397,0.4806,3128.7,3127.3,0.3109]
[1763499791144,0.4806,3128.7,3127.4,0.405504]
[1763499791522,0.4806,3128.7,3127.5,0.3109]
[1763499791956,0.4806,3128.7,3127.5,0.405504]
[1763499792256,0.4806,3128.7,3127.7,0.405504]
[1763499799888,0.4826,3128.7,3127.7,0.405504]
[1763499803767,0.4826,3128.7,3127.4,0.90699264]
[1763499803978,0.4916,3127.5,3127.3,0.54833966]
[1763499804186,0.4916,3127.5,3127.0,0.4969066]
[1763499804187,0.4916,3127.5,3127.0,0.001]
[1763499804691,0.9586,3127.5,3127.0,0.001]
[1763499805006,0.4916,3127.1,3127.0,0.001]
[1763499805492,0.9586,3127.1,3127.0,0.001]
[1763499805860,0.647,3127.6,3127.0,0.001]
[1763499806377,0.4916,3127.1,3127.0,0.001]
[1763499806788,0.9586,3127.1,3127.0,0.001]
[1763499808997,0.9586,3127.1,3127.0,0.00707546]
[1763499811409,0.4916,3127.1,3127.0,0.00707546]
[1763499811609,0.467,3127.4,3127.0,0.00707546]
[1763499811911,0.4916,3127.1,3127.0,0.00707546]
[1763499815081,0.467,3127.3,3127.0,0.00707546]
[1763499815284,0.4916,3127.1,3127.0,0.00707546]
[1763499816118,0.9586,3127.1,3127.0,0.00707546]
[1763499817537,0.9586,3127.1,3126.6,0.001]
[1763499817734,0.5294,3126.7,3126.3,0.001]
[1763499817899,0.4507,3126.4,3126.3,0.001]
[1763499818431,0.9125,3126.4,3126.3,0.001]
[1763499818983,0.0787,3126.7,3126.3,0.001]
[1763499819206,0.4618,3126.6,3126.3,0.001]
[1763499819885,0.4618,3127.1,3126.3,0.001]
[1763499820306,0.4507,3126.4,3126.3,0.001]
[1763499820726,0.9125,3126.4,3126.3,0.001]
[1763499822810,0.1829,3127.2,3126.3,0.001]
[1763499823012,0.1829,3127.2,3126.3,0.314]
[1763499823013,0.6447,3127.2,3126.3,0.314]
[1763499823404,0.4618,3127.1,3126.3,0.314]
[1763499823933,0.4618,3127.1,3126.3,0.001]
[1763499826632,0.1829,3127.2,3126.3,0.03298669]
[1763499826795,0.1829,3127.2,3126.4,0.313]
[1763499827228,0.4618,3127.4,3126.4,0.313]
[1763499829951,0.4618,3127.4,3126.3,0.001]
[1763499830518,0.4618,3127.4,3126.3,0.314]
[1763499833762,0.4618,3127.4,3126.3,0.001]
[1763499835173,0.4638,3127.4,3126.3,0.314]
[1763499835783,0.4638,3127.4,3126.3,0.001]
[1763499836577,0.4638,3127.4,3126.3,0.314]
[1763499837034,0.4638,3127.4,3126.4,0.405504]
[1763499837551,0.4638,3127.4,3126.5,0.313]
[1763499841684,0.002,3127.4,3126.3,0.001]
[1763499841869,0.4618,3127.3,3126.3,0.001]
[1763499842075,0.002,3127.4,3126.4,0.313]
[1763499842669,0.002,3127.4,3126.3,0.001]
[1763499842872,0.4618,3127.3,3126.3,0.001]
[1763499843362,0.4507,3126.4,3126.3,0.001]
[1763499843872,0.4618,3126.9,3126.3,0.001]
[1763499844071,0.4507,3126.4,3126.3,0.001]
[1763499844464,0.9125,3126.4,3126.3,0.001]
[1763499846881,0.4507,3126.4,3126.3,0.001]
[1763499847081,0.494,3126.7,3126.3,0.001]
[1763499848734,0.002,3127.4,3126.3,0.001]
[1763499848735,0.494,3127.0,3126.3,0.001]
[1763499849507,0.494,3127.3,3126.3,0.314]
[1763499849845,0.002,3127.4,3126.3,0.314]
[1763499849846,0.002,3127.4,3126.4,0.405504]
[1763499850205,0.002,3127.4,3126.5,0.313]
[1763499851030,0.496,3127.4,3126.3,0.001]
[1763499851327,0.002,3127.4,3127.3,0.4402]
[1763499851693,0.002,3127.4,3127.3,1.158704]
[1763499851910,0.002,3127.4,3127.3,8.64741629]
[1763499852125,0.002,3127.4,3127.3,10.14194918]
[1763499856516,0.002,3127.8,3127.4,1.31249664]
[1763499856707,0.002,3127.8,3127.7,0.718504]
[1763499857329,0.002,3127.8,3127.7,1.031504]
[1763499859608,0.002,3127.8,3127.7,0.718504]
[1763499860511,0.457,3127.8,3127.3,1.62173289]
[1763499860706,0.457,3127.8,3127.3,0.75699126]
[1763499861029,0.457,3127.8,3127.4,0.405504]
[1763499862035,0.4833,3127.5,3126.9,0.457]
[1763499862202,0.4858,3127.7,3126.9,0.457]
[1763499862203,0.4833,3127.4,3126.9,0.457]
[1763499862548,0.4833,3127.4,3126.9,1.08520618]
[1763499862713,0.4858,3127.3,3126.7,0.1272]
[1763499863231,0.4858,3127.3,3126.2,0.313]
[1763499863405,0.4858,3127.3,3126.8,0.457]
[1763499865033,0.002,3127.8,3126.8,0.457]
[1763499865226,0.4858,3127.3,3126.8,0.457]
[1763499867935,0.4858,3127.3,3126.8,1.09944881]
[1763499868506,0.002,3127.8,3127.2,0.313]
[1763499868723,0.4878,3127.8,3127.2,0.313]
[1763499869938,0.4833,3127.3,3126.8,1.09944881]
[1763499870346,0.9691,3127.3,3126.8,1.09944881]
[1763499870865,0.4858,3127.2,3126.8,1.09944881]
[1763499871161,0.4833,3126.9,3126.8,1.09944881]
[1763499872330,0.4833,3126.9,3126.8,1.50495281]
[1763499872762,0.9691,3126.9,3126.8,1.50495281]
[1763499873262,0.9691,3126.9,3126.8,0.457]
[1763499873765,0.9691,3126.9,3126.5,0.001]
[1763499874062,0.4833,3126.6,3126.5,0.001]
[1763499874435,0.9691,3126.6,3126.5,0.001]
[1763499878869,0.002,3127.8,3126.5,0.001]
[1763499879039,0.4926,3127.2,3126.5,0.001]
[1763499880067,0.4968,3126.6,3126.5,0.001]
[1763499880477,0.9894,3126.6,3126.5,0.001]
[1763499884439,0.9894,3126.6,3126.3,0.001]
[1763499884641,0.4754,3126.4,3126.3,0.001]
[1763499884997,4.28599264,3126.3,3126.2,0.001]
[1763499885202,5.27419264,3126.3,3126.2,0.001]
[1763499888604,0.9882,3126.3,3126.2,0.001]
[1763499898679,11.50141382,3126.3,3126.2,0.001]
[1763499898882,11.30389664,3126.2,3125.8,0.001]
[1763499899096,11.30389664,3126.2,3124.0,0.316]
[1763499899097,1.59169264,3125.9,3124.0,0.316]
[1763499899419,0.4711,3124.7,3124.1,0.1868]
[1763499899748,0.1893,3124.6,3123.4,0.318]
[1763499900052,0.1893,3124.6,3123.5,0.405504]
[1763499900224,0.6819,3124.6,3123.4,0.318]
[1763499900429,0.6819,3124.6,3123.8,0.316]
[1763499900430,0.4926,3124.5,3123.8,0.316]
[1763499900734,0.4926,3124.5,3123.0,0.1272]
[1763499900896,0.4926,3124.5,3123.0,0.779518]
[1763499901798,0.4926,3124.5,3123.0,0.1272]
[1763499902000,0.4926,3124.5,3123.0,0.4452]
[1763499902959,0.4926,3124.5,3123.0,0.1272]
[1763499903116,0.4926,3124.5,3122.9,0.68799584]
[1763499903445,7.22130982,3124.5,3122.9,0.68799584]
[1763499903596,7.22130982,3124.5,3122.3,0.318]
[1763499903597,0.405504,3124.3,3122.3,0.318]
[1763499903798,1.09231428,3124.3,3122.3,0.318]
[1763499903996,0.4926,3124.2,3122.3,0.318]
[1763499904431,0.4926,3124.2,3122.5,0.68799584]
[1763499904839,0.4926,3124.2,3122.7,0.405504]
[1763499905009,0.1893,3124.6,3122.9,0.405504]
[1763499905339,0.1893,3124.6,3122.6,0.318]
[1763499905340,0.1893,3124.6,3123.1,0.405504]
[1763499905540,0.4926,3124.5,3123.2,0.1272]
[1763499905907,0.4926,3124.5,3122.5,0.68799584]
[1763499905908,0.4926,3124.5,3122.6,0.723504]
[1763499906197,0.4926,3124.5,3122.6,0.318]
[1763499906429,0.4926,3124.5,3122.5,0.68799584]
[1763499906628,0.4926,3124.5,3122.7,0.318]
[1763499907199,0.4926,3124.5,3122.8,0.405504]
[1763499907402,0.4926,3124.5,3122.9,0.318]
[1763499907813,0.4926,3124.5,3122.6,0.723504]
[1763499908533,0.4926,3124.5,3122.7,0.318]
[1763499908841,0.4926,3124.5,3122.8,0.405504]
[1763499909217,0.4926,3124.5,3122.9,0.318]
[1763499909842,0.4926,3124.5,3123.0,0.68799584]
[1763499910241,0.4926,3124.5,3123.1,0.1272]
[1763499910754,0.4926,3124.5,3123.1,0.4452]
[1763499910939,0.4926,3124.5,3123.2,0.96252721]
[1763499911150,0.4926,3124.5,3123.2,1.28052721]
[1763499911344,0.4926,3124.5,3123.3,0.318]
[1763499912216,0.4926,3124.5,3123.2,0.96252721]
[1763499912416,0.4926,3124.5,3122.9,0.001]
[1763499912635,0.4926,3124.5,3123.0,0.90699264]
[1763499913343,7.13421382,3124.4,3123.0,0.90699264]
[1763499913550,1.59313147,3124.3,3122.9,0.001]
[1763499913762,1.38649264,3124.3,3122.9,0.90799264]
[1763499913914,0.4795,3124.2,3122.9,0.90799264]
[1763499914110,3.379,3124.1,3122.9,0.90799264]
[1763499914311,0.4795,3124.2,3122.9,0.90799264]
[1763499914914,0.4795,3124.2,3122.9,1.22599264]
[1763499915723,0.4795,3124.2,3123.0,0.318]
[1763499916147,0.6688,3124.6,3123.1,0.532704]
[1763499916340,0.4795,3124.9,3124.1,0.318]
[1763499916527,0.6691,3125.4,3124.2,0.318]
[1763499916867,0.002,3125.8,3125.7,0.4134]
[1763499917048,0.002,3125.8,3125.7,0.7314]
[1763499917347,0.002,3127.8,3126.1,0.318]
[1763499917555,0.002,3127.8,3127.3,0.1113]
[1763499917729,0.002,3127.8,3127.3,0.4293]
[1763499918351,0.002,3127.8,3127.3,0.7473]
[1763499918531,0.002,3127.8,3127.3,0.4293]
[1763499918735,0.4815,3127.8,3127.0,0.1113]
[1763499918948,0.002,3127.8,3127.0,0.1113]
[1763499919154,0.002,3127.8,3127.3,0.5076]
[1763499919340,0.002,3127.8,3127.3,0.1896]
[1763499920743,0.4815,3127.8,3127.3,0.1896]
[1763499921464,0.9235,3127.4,3126.5,0.1113]
[1763499921648,0.8735,3127.4,3126.5,0.1113]
[1763499921846,0.8735,3127.4,3127.0,0.318]
[1763499922072,0.4625,3127.3,3127.0,0.318]
[1763499922375,0.459,3127.1,3127.0,0.318]
[1763499922982,0.9215,3127.1,3125.7,0.4614]
[1763499923179,0.9215,3127.1,3125.8,0.405504]
[1763499923478,0.4625,3127.0,3125.7,0.4614]
[1763499923677,0.4625,3127.0,3125.8,0.405504]
[1763499923872,0.1805,3126.9,3125.8,0.405504]
[1763499924071,0.1805,3126.9,3125.7,0.4614]
[1763499924380,0.4625,3126.8,3125.7,0.0954]
[1763499924585,0.4625,3126.8,3125.3,0.366]
[1763499924771,0.4625,3126.8,3125.5,0.0954]
[1763499926597,0.407504,3127.8,3125.6,0.771504]
[1763499926598,0.4625,3127.3,3125.6,0.771504]
[1763499926785,0.407504,3127.8,3125.8,0.405504]
[1763499926986,0.4625,3127.6,3125.8,0.405504]
[1763499927184,0.4625,3127.6,3126.0,0.405504]
[1763499927701,0.4625,3127.6,3126.1,0.1113]
[1763499929777,0.4625,3127.6,3125.6,0.405504]
[1763499930121,0.90699264,3127.3,3125.5,0.0964]
[1763499930506,0.4625,3127.2,3125.5,0.0964]
[1763499933024,6.58498937,3126.9,3125.5,0.001]
[1763499933170,0.002,3127.4,3125.5,0.001]
[1763499933171,0.6395,3125.6,3125.5,0.001]
[1763499933663,0.1805,3125.6,3125.5,0.001]
[1763499934086,0.6395,3125.6,3125.5,0.001]
[1763499934282,1.102,3125.6,3125.5,0.001]
[1763499935519,0.643,3126.8,3125.5,0.733]
[1763499935820,0.643,3126.8,3125.6,0.03199385]
[1763499936018,0.4625,3127.2,3125.7,0.366]
[1763499936221,0.1805,3127.1,3125.7,0.366]
[1763499937117,0.6439,3127.1,3125.7,0.366]
[1763499937520,0.4634,3127.0,3125.5,0.001]
[1763499937701,1.37039264,3127.0,3125.5,0.001]
[1763499938213,0.4634,3126.9,3125.5,0.001]
[1763499941740,0.405504,3126.8,3125.5,0.001]
[1763499941937,0.4634,3126.7,3125.5,0.001]
[1763499944747,0.6735,3125.6,3125.5,0.001]
[1763499945117,1.1369,3125.6,3125.5,0.001]
[1763499949349,2.04389264,3125.6,3125.5,0.001]
[1763499955585,3.379,3125.4,3125.1,0.001]
[1763499955791,1.31249664,3124.9,3124.8,0.001]
[1763499955951,2.67310982,3124.9,3124.8,0.001]
[1763499956150,2.04279264,3124.9,3124.8,0.001]
[1763499956460,1.1358,3124.9,3124.8,0.001]
[1763499959366,5.42179264,3124.9,3124.8,0.001]
[1763499960899,1.39719264,3124.9,3124.8,0.001]
[1763499961087,0.90699264,3124.9,3124.8,0.001]
[1763499961866,0.4913,3124.9,3124.8,0.001]
[1763499965712,0.1822,3125.0,3124.8,0.001]
[1763499965881,3.379,3125.3,3124.8,0.001]
[1763499966085,0.1822,3126.4,3124.8,0.001]
[1763499966086,3.5612,3125.6,3124.8,0.368]
[1763499966508,0.90699264,3125.5,3124.8,0.001]
[1763499966709,1.35819264,3125.5,3124.8,0.001]
[1763499967093,0.462,3124.9,3124.8,0.001]
[1763499967618,0.4512,3125.1,3124.8,0.001]
[1763499968329,4.28599264,3125.3,3124.8,0.001]
[1763499968533,0.4512,3125.2,3124.8,0.001]
[1763499969123,0.462,3124.9,3124.8,0.001]
[1763499969433,1.36899264,3124.9,3124.8,0.001]
[1763499969588,1.82019264,3124.9,3124.8,0.001]
[1763499970586,5.19919264,3124.9,3124.8,0.001]
[1763499970788,6.29382184,3124.9,3124.8,0.001]
[1763499971286,6.58698127,3124.9,3124.8,0.001]
[1763499971686,43.41697164,3124.9,3124.8,0.001]
[1763499971883,0.405504,3124.5,3124.4,0.001]
[1763499972087,5.60469664,3124.5,3124.4,0.001]
[1763499972282,6.58680967,3124.5,3124.4,0.001]
[1763499973416,16.8757837,3124.5,3124.4,0.001]
[1763499973916,13.5370397,3124.5,3124.4,0.001]
[1763499974117,11.5265077,3124.5,3124.4,0.001]
[1763499974420,7.44862277,3124.5,3124.4,0.001]
[1763499974782,9.69862277,3124.5,3124.4,0.001]
[1763499974982,8.8367307,3124.5,3124.4,0.001]
[1763499975220,8.7367307,3124.5,3124.4,0.001]
[1763499975915,6.5867307,3124.5,3124.4,0.001]
[1763499976222,9.0967137,3124.5,3124.4,0.001]
[1763499977823,9.95860577,3124.5,3124.4,0.001]
[1763499978525,9.0967137,3124.5,3124.4,0.001]
[1763499978722,11.33334577,3124.5,3124.4,0.001]
[1763499978899,2.8022267,3124.5,3124.4,0.001]
[1763499979099,1.36899264,3124.5,3124.4,0.001]
[1763499980009,0.90699264,3124.5,3124.4,0.368]
[1763499980396,0.86189207,3125.4,3124.4,0.735]
[1763499980595,0.2933691,3125.3,3124.4,0.735]
[1763499981031,0.2933691,3125.4,3124.5,0.367]
[1763499981200,5.26906069,3125.4,3124.5,0.367]
[1763499981405,0.002,3125.1,3124.5,0.367]
[1763499981924,0.002,3125.1,3125.0,0.367]
[1763499984298,0.002,3125.1,3125.0,0.734]
[1763499986112,0.002,3125.1,3125.0,0.367]
[1763499986892,0.002,3125.1,3124.5,0.367]
[1763499987092,0.002,3125.1,3124.4,0.001]
[1763499988222,0.002,3125.1,3125.0,0.367]
[1763499989427,0.002,3125.1,3125.0,0.734]
[1763499989730,0.002,3125.1,3125.0,0.367]
[1763499989928,0.002,3125.1,3124.6,0.734]
[1763499990129,0.002,3125.1,3124.6,0.367]
[1763499990620,0.002,3125.1,3124.4,0.001]
[1763499990819,0.002,3125.1,3124.5,0.367]
[1763499991333,0.002,3125.1,3124.4,0.001]
[1763499992129,0.002,3125.1,3124.4,0.368]
[1763499993195,0.002,3125.1,3125.0,0.367]
[1763499995029,0.002,3125.1,3124.5,0.369]
[1763499995815,0.002,3125.1,3124.5,0.736]
[1763499996359,0.002,3125.1,3125.0,0.367]
[1763499996947,0.002,3125.1,3125.0,0.734]
[1763499998828,0.002,3125.5,3125.0,0.734]
[1763499999142,0.002,3125.5,3125.4,0.4624]
[1763499999317,0.002,3125.5,3125.4,0.8294]
[1763500000550,0.002,3125.5,3125.4,0.4624]
[1763500000938,0.002,3125.5,3125.4,0.8294]
[1763500008741,0.002,3125.5,3125.4,0.4624]
[1763500008946,0.002,3125.5,3125.4,0.367]
[1763500013293,0.002,3125.5,3125.4,0.734]
[1763500014892,0.002,3125.5,3125.4,0.367]
[1763500019287,0.002,3125.5,3125.4,0.734]
[1763500021078,0.002,3125.5,3125.2,0.0954]
[1763500021272,0.002,3125.5,3125.0,0.001]
[1763500021468,0.4693,3125.1,3125.0,0.001]
[1763500022101,0.4633,3125.4,3125.0,0.368]
[1763500022600,0.4633,3125.4,3125.0,0.001]
[1763500022601,0.4961,3125.1,3125.0,0.001]
[1763500024314,0.9594,3125.1,3125.0,0.001]
[1763500031229,1.364904,3125.1,3125.0,0.001]
[1763500031400,6.6313016,3125.1,3124.8,0.001]
[1763500031600,0.874004,3124.9,3124.8,0.001]
[1763500031809,1.5640521,3124.9,3124.8,0.001]
[1763500032010,2.92974474,3124.9,3124.8,0.001]
[1763500032411,6.30574474,3124.9,3124.8,0.001]
[1763500032756,15.97586672,3124.9,3124.8,0.001]
[1763500033057,15.97586124,3124.9,3124.8,0.001]
[1763500034203,15.68274531,3124.9,3124.8,0.001]
[1763500034627,15.97529693,3124.9,3124.8,0.001]
[1763500034834,13.34029693,3124.9,3124.8,0.001]
[1763500035240,2.0227521,3124.9,3124.8,0.001]
[1763500035610,1.332704,3124.9,3124.8,0.001]
[1763500039344,5.61569664,3124.9,3124.8,0.001]
[1763500040613,4.708704,3124.9,3124.8,0.001]
[1763500041241,5.66049664,3124.8,3124.1,0.001]
[1763500041422,3.376,3124.2,3124.1,0.001]
[1763500041620,5.16359664,3124.2,3124.1,0.001]
[1763500041955,5.66029664,3124.2,3124.1,0.001]
[1763500042444,23.42840564,3124.2,3124.1,0.001]
[1763500043046,24.11580417,3124.2,3124.1,0.001]
[1763500043363,3.781504,3123.4,3122.3,0.1113]
[1763500043566,3.376,3123.2,3122.3,0.1113]
[1763500043719,3.376,3123.2,3122.3,0.4783]
[1763500043911,3.8727,3123.2,3122.3,0.4783]
[1763500044114,0.4967,3123.2,3122.3,0.4783]
[1763500045057,0.405504,3123.1,3122.3,0.1113]
[1763500046746,0.1849,3123.6,3123.0,0.367]
[1763500047085,0.1849,3123.6,3122.4,0.367]
[1763500047086,0.1849,3124.0,3123.1,0.367]
[1763500047258,1.09189264,3124.0,3122.4,0.367]
[1763500047457,1.58859264,3124.0,3122.4,0.367]
[1763500047770,0.405504,3123.7,3122.4,0.367]
[1763500048376,0.90699264,3123.8,3122.4,0.367]
[1763500048377,0.4967,3123.6,3122.4,0.367]
[1763500049656,0.405504,3123.5,3122.4,0.367]
[1763500050085,4.28299264,3123.8,3123.4,0.4783]
[1763500050086,0.405504,3123.7,3123.4,0.4783]
[1763500050273,1.1334191,3124.7,3123.4,0.4783]
[1763500050274,0.4967,3124.9,3123.6,0.367]
[1763500050494,0.4967,3124.9,3123.7,0.734]
[1763500050979,0.4967,3124.9,3123.8,0.367]
[1763500051360,0.90699264,3124.7,3123.4,0.1113]
[1763500051766,0.4967,3124.6,3123.4,0.1113]
[1763500052352,1.31249664,3124.5,3123.4,0.1113]
[1763500052773,0.4967,3124.4,3123.4,0.1113]
[1763500054414,0.4967,3124.4,3123.6,0.001]
[1763500055690,0.405504,3124.5,3123.6,0.001]
[1763500055891,0.902204,3124.5,3123.6,0.001]
[1763500056813,0.405504,3124.6,3123.6,0.368]
[1763500056975,1.5752907,3124.6,3123.6,0.368]
[1763500057180,0.68910318,3124.5,3123.6,0.368]
[1763500057513,0.4812,3124.6,3123.6,0.368]
[1763500059182,0.77444539,3124.6,3123.6,0.368]
[1763500059494,0.4812,3124.5,3123.6,0.368]
[1763500060193,0.4812,3124.5,3123.6,0.36297]
[1763500065011,0.4812,3124.5,3123.4,0.1113]
[1763500065211,0.405504,3124.4,3123.4,0.1113]
[1763500065559,1.38812433,3124.4,3123.4,0.1113]
[1763500065708,0.4812,3124.3,3123.4,0.1113]
[1763500066129,0.4812,3124.3,3123.4,0.4743]
[1763500066314,1.1334191,3124.8,3123.4,0.4743]
[1763500066315,1.345746,3124.9,3124.2,0.408]
[1763500066526,0.77471998,3124.8,3123.5,0.363]
[1763500066739,0.405504,3124.7,3123.5,0.363]
[1763500066935,2.77730048,3124.7,3123.5,0.363]
[1763500067135,0.98360384,3124.6,3123.5,0.363]
[1763500067305,0.4812,3124.6,3123.5,0.363]
[1763500067512,0.4812,3124.5,3123.5,0.363]
[1763500068439,0.4812,3124.5,3123.4,0.1113]
[1763500069024,0.405504,3124.4,3123.4,0.1113]
[1763500069453,1.57678786,3124.4,3123.3,0.001]
[1763500069650,0.4812,3124.3,3123.3,0.001]
[1763500070846,4.89879289,3124.0,3123.3,0.001]
[1763500073251,0.4812,3124.1,3123.3,0.001]
[1763500073563,4.89879289,3124.0,3123.4,0.001]
[1763500077966,5.38199289,3124.4,3123.9,0.363]
[1763500078173,0.69163138,3124.3,3123.9,0.363]
[1763500078486,1.59862402,3124.3,3123.9,0.363]
[1763500078667,1.38819264,3124.3,3123.9,0.363]
[1763500079485,0.90699264,3124.3,3123.9,0.363]
[1763500079672,1.59923119,3124.3,3123.9,0.363]
[1763500080610,1.17343855,3124.2,3123.4,0.364]
[1763500082494,0.69223855,3124.2,3123.4,0.364]
[1763500082693,0.69223855,3124.3,3123.4,0.364]
[1763500083498,0.69223855,3124.2,3123.4,0.364]
[1763500083676,1.17343855,3124.3,3123.4,0.364]
[1763500083998,0.69223855,3124.2,3123.4,0.364]
[1763500084405,5.37999289,3124.1,3123.4,0.001]
[1763500085371,4.89879289,3123.8,3123.4,0.001]
[1763500088691,0.1837,3123.9,3123.4,0.001]
[1763500088890,0.6421,3123.9,3123.4,0.001]
[1763500089814,5.38969289,3123.5,3123.4,0.001]
[1763500090228,5.84809289,3123.5,3123.4,0.001]
[1763500092296,0.9493,3123.5,3123.4,0.001]
[1763500092833,0.4909,3123.5,3123.4,0.001]
[1763500093033,0.90699264,3123.7,3123.4,0.001]
[1763500093196,0.69230822,3123.7,3123.6,0.363]
[1763500093399,0.69230822,3123.9,3123.6,0.363]
[1763500093821,0.69230822,3123.9,3123.4,0.001]